fUSD/lending_fUSD_20250911
["ID","MTS","AMOUNT","RATE_DAILY","PERIOD"]
[384939697,1757629845672,-400.0,0.00027397,7]
[384939699,1757629845682,-400.0,0.00027397,7]
[384939701,1757629845691,-1400.15,0.00027397,7]
[384939703,1757629845701,-400.0,0.00027397,7]
[384939705,1757629845711,-400.0,0.00027397,7]
[384939707,1757629845721,-400.0,0.00027397,7]
[384939710,1757629845730,-990.85,0.00027397,7]
[384939712,1757629845741,-400.0,0.00027397,7]
[384939714,1757629845751,-400.0,0.00027397,7]
[384939716,1757629845761,-949.19,0.00027397,7]
[384939718,1757629845771,-400.0,0.00027397,7]
[384939720,1757629845781,-400.0,0.00027397,7]
[384939722,1757629845791,-400.0,0.00027397,7]
[384939724,1757629845800,-400.0,0.00027397,7]
[384939726,1757629845810,-400.0,0.00027397,7]
[384939728,1757629845820,-400.0,0.00027397,7]
[384939730,1757629845830,-400.0,0.00027397,7]
[384939731,1757629845840,-469.63,0.00027397,7]
[384939733,1757629845852,-1157.86,0.00027397,7]
[384939735,1757629845862,-400.0,0.00027397,7]
[384939737,1757629845872,-400.0,0.00027397,7]
[384939739,1757629845882,-296.34277607,0.00027397,7]
[384939741,1757629845892,-400.0,0.00027397,7]
[384939743,1757629845901,-400.0,0.00027397,7]
[384939744,1757629845913,-400.0,0.00027397,7]
[384939746,1757629845923,-774.43,0.00027397,7]
[384939748,1757629845933,-1498.53,0.00027397,7]
[384939750,1757629845943,-400.0,0.00027397,7]
[384939752,1757629845953,-1204.28,0.00027397,7]
[384939754,1757629845963,-400.0,0.00027397,7]
[384939755,1757629845973,-400.0,0.00027397,7]
[384939757,1757629845982,-400.0,0.00027397,7]
[384939758,1757629845992,-400.0,0.00027397,7]
[384939759,1757629846002,-400.0,0.00027397,7]
[384939760,1757629846012,-400.0,0.00027397,7]
[384939761,1757629846022,-400.0,0.00027397,7]
[384939762,1757629846031,-400.0,0.00027397,7]
[384939763,1757629846040,-400.0,0.00027397,7]
[384939764,1757629846049,-1055.62,0.00027397,7]
[384939765,1757629846059,-1093.85,0.00027397,7]
[384939766,1757629846068,-1132.8,0.00027397,7]
[384939767,1757629846077,-400.0,0.00027397,7]
[384939768,1757629846086,-400.0,0.00027397,7]
[384939769,1757629846095,-400.0,0.00027397,7]
[384939770,1757629846104,-400.0,0.00027397,7]
[384939771,1757629846113,-400.0,0.00027397,7]
[384939772,1757629846122,-400.0,0.00027397,7]
[384939773,1757629846131,-400.0,0.00027397,7]
[384939774,1757629846139,-755.26,0.00027397,7]
[384939775,1757629846149,-400.0,0.00027397,7]
[384939776,1757629846158,-898.53,0.00027397,7]
[384939777,1757629846167,-400.0,0.00027397,7]
[384939778,1757629846176,-1512.75,0.00027397,7]
[384939779,1757629846185,-1030.65,0.00027397,7]
[384939780,1757629846194,-503.46928506,0.00027397,7]
[384939781,1757629846203,-400.0,0.00027397,7]
[384939782,1757629846212,-400.0,0.00027397,7]
[384939783,1757629846221,-1009.53,0.00027397,7]
[384939784,1757629846231,-1390.51,0.00027397,7]
[384939785,1757629846240,-400.0,0.00027397,7]
[384939786,1757629846250,-400.0,0.00027397,7]
[384939787,1757629846257,-1310.24,0.00027397,7]
[384939788,1757629846266,-400.0,0.00027397,7]
[384939789,1757629846276,-1084.7,0.00027397,7]
[384939790,1757629846290,-685.55,0.00027397,7]
[384939791,1757629846301,-500.0,0.00027397,7]
[384939792,1757629846311,-457.87,0.00027397,7]
[384939793,1757629846322,-400.0,0.00027397,7]
[384939794,1757629846333,-400.0,0.00027397,7]
[384939795,1757629846343,-500.0,0.00027397,7]
[384939796,1757629846355,-500.0,0.00027397,7]
[384939797,1757629846365,-500.0,0.00027397,7]
[384939798,1757629846375,-500.0,0.00027397,7]
[384939800,1757629846385,-534.0,0.00027397,7]
[384939802,1757629846394,-400.0,0.00027397,7]
[384939804,1757629846407,-400.0,0.00027397,7]
[384939806,1757629846416,-400.0,0.00027397,7]
[384939808,1757629846426,-1358.47,0.00027397,7]
[384939810,1757629846436,-400.0,0.00027397,7]
[384939812,1757629846446,-931.63,0.00027397,7]
[384939813,1757629846456,-849.24,0.00027397,7]
[384939814,1757629846466,-1380.42,0.00027397,7]
[384939815,1757629846476,-1545.33,0.00027397,7]
[384939816,1757629846486,-400.0,0.00027397,7]
[384939817,1757629846496,-400.0,0.00027397,7]
[384939819,1757629846506,-400.0,0.00027397,7]
[384939821,1757629846516,-400.0,0.00027397,7]
[384939823,1757629846527,-400.0,0.00027397,7]
[384939825,1757629846536,-400.0,0.00027397,7]
[384939826,1757629846546,-639.89,0.00027397,7]
[384939827,1757629846555,-400.0,0.00027397,7]
[384939828,1757629846565,-400.0,0.00027397,7]
[384939829,1757629846575,-1092.6,0.00027397,7]
[384939830,1757629846585,-1771.66,0.00027397,7]
[384939831,1757629846594,-400.0,0.00027397,7]
[384939832,1757629846604,-400.0,0.00027397,7]
[384939833,1757629846613,-400.0,0.00027397,7]
[384939834,1757629846623,-640.78,0.00027397,7]
[384939835,1757629846633,-400.0,0.00027397,7]
[384939836,1757629846642,-400.0,0.00027397,7]
[384939837,1757629846652,-400.0,0.00027397,7]
[384939838,1757629846661,-400.0,0.00027397,7]
[384939839,1757629846671,-400.0,0.00027397,7]
[384939840,1757629846681,-400.0,0.00027397,7]
[384939841,1757629846691,-400.0,0.00027397,7]
[384939842,1757629846701,-400.0,0.00027397,7]
[384939843,1757629846710,-670.72,0.00027397,7]
[384939844,1757629846720,-540.59,0.00027397,7]
[384939845,1757629846729,-400.0,0.00027397,7]
[384939846,1757629846739,-400.0,0.00027397,7]
[384939847,1757629846749,-1012.60947597,0.00027397,7]
[384939848,1757629846759,-1474.83,0.00027397,7]
[384939849,1757629846769,-400.0,0.00027397,7]
[384939850,1757629846779,-400.0,0.00027397,7]
[384939851,1757629846788,-493.94,0.00027397,7]
[384939852,1757629846798,-400.0,0.00027397,7]
[384939853,1757629846807,-400.0,0.00027397,7]
[384939854,1757629846817,-400.0,0.00027397,7]
[384939855,1757629846827,-899.41,0.00027397,7]
[384939856,1757629846836,-400.0,0.00027397,7]
[384939857,1757629846847,-1123.47,0.00027397,7]
[384939858,1757629846857,-400.0,0.00027397,7]
[384939859,1757629846867,-939.32,0.00027397,7]
[384939860,1757629846876,-400.0,0.00027397,7]
[384939861,1757629846886,-224.03114287,0.00027397,7]
[384939862,1757629846895,-400.0,0.00027397,7]
[384939863,1757629846906,-400.0,0.00027397,7]
[384939864,1757629846915,-400.0,0.00027397,7]
[384939865,1757629846925,-400.0,0.00027397,7]
[384939866,1757629846935,-400.0,0.00027397,7]
[384939867,1757629846944,-400.0,0.00027397,7]
[384939868,1757629846954,-1133.84,0.00027397,7]
[384939869,1757629846964,-1216.65,0.00027397,7]
[384939870,1757629846974,-554.64,0.00027397,7]
[384939871,1757629846983,-400.0,0.00027397,7]
[384939872,1757629846994,-400.0,0.00027397,7]
[384939873,1757629847004,-429.25,0.00027397,7]
[384939874,1757629847371,-400.0,0.00027397,7]
[384939875,1757629847387,-400.0,0.00027397,7]
[384939876,1757629847396,-703.79,0.00027397,7]
[384939877,1757629847406,-400.0,0.00027397,7]
[384939878,1757629847415,-400.0,0.00027397,7]
[384939879,1757629847425,-1156.72,0.00027397,7]
[384939880,1757629847435,-1441.26,0.00027397,7]
[384939881,1757629847446,-400.0,0.00027397,7]
[384939882,1757629847456,-400.0,0.00027397,7]
[384939883,1757629847465,-400.0,0.00027397,7]
[384939884,1757629847475,-766.67,0.00027397,7]
[384939885,1757629847485,-400.0,0.00027397,7]
[384939886,1757629847494,-400.0,0.00027397,7]
[384939887,1757629847504,-407.79350876,0.00027397,7]
[384939888,1757629847514,-1075.0,0.00027397,7]
[384939889,1757629847524,-400.0,0.00027397,7]
[384939890,1757629847533,-400.0,0.00027397,7]
[384939891,1757629847543,-400.0,0.00027397,7]
[384939892,1757629847552,-412.63,0.00027397,7]
[384939893,1757629847562,-400.0,0.00027397,7]
[384939894,1757629847572,-1135.57,0.00027397,7]
[384939895,1757629847582,-400.0,0.00027397,7]
[384939896,1757629847591,-400.0,0.00027397,7]
[384939897,1757629847602,-400.0,0.00027397,7]
[384939898,1757629847612,-400.0,0.00027397,7]
[384939899,1757629847622,-708.41,0.00027397,7]
[384939900,1757629847632,-400.0,0.00027397,7]
[384939901,1757629847642,-497.85,0.00027397,7]
[384939902,1757629847651,-585.39,0.00027397,7]
[384939903,1757629847661,-400.0,0.00027397,7]
[384939904,1757629847671,-400.0,0.00027397,7]
[384939905,1757629847680,-400.0,0.00027397,7]
[384939906,1757629847690,-529.67,0.00027397,7]
[384939907,1757629847700,-400.0,0.00027397,7]
[384939908,1757629847709,-972.93,0.00027397,7]
[384939909,1757629847719,-436.17,0.00027397,7]
[384939910,1757629847729,-621.55,0.00027397,7]
[384939911,1757629847739,-400.0,0.00027397,7]
[384939912,1757629847748,-400.0,0.00027397,7]
[384939913,1757629847759,-400.0,0.00027397,7]
[384939914,1757629847768,-422.96,0.00027397,7]
[384939915,1757629847778,-400.0,0.00027397,7]
[384939916,1757629847788,-400.0,0.00027397,7]
[384939917,1757629847798,-500.0,0.00027397,7]
[384939918,1757629847808,-1083.62,0.00027397,7]
[384939919,1757629847818,-812.86,0.00027397,7]
[384939920,1757629847828,-765.3,0.00027397,7]
[384939921,1757629847838,-400.0,0.00027397,7]
[384939922,1757629847848,-863.97,0.00027397,7]
[384939923,1757629847857,-400.0,0.00027397,7]
[384939924,1757629847867,-400.0,0.00027397,7]
[384939925,1757629847877,-400.0,0.00027397,7]
[384939926,1757629847887,-400.0,0.00027397,7]
[384939927,1757629847897,-400.0,0.00027397,7]
[384939928,1757629847906,-400.0,0.00027397,7]
[384939929,1757629847916,-1718.95,0.00027397,7]
[384939930,1757629847926,-1177.07,0.00027397,7]
[384939931,1757629847937,-400.0,0.00027397,7]
[384939932,1757629847947,-991.27,0.00027397,7]
[384939933,1757629847959,-998.7,0.00027397,7]
[384939934,1757629847968,-986.16,0.00027397,7]
[384939935,1757629847979,-400.0,0.00027397,7]
[384939936,1757629847988,-429.34,0.00027397,7]
[384939937,1757629847998,-400.0,0.00027397,7]
[384939938,1757629848009,-1410.34,0.00027397,7]
[384939939,1757629848019,-400.0,0.00027397,7]
[384939940,1757629848029,-1311.0,0.00027397,7]
[384939941,1757629848040,-1167.0,0.00027397,7]
[384939942,1757629848050,-881.03,0.00027397,7]
[384939943,1757629848062,-513.69,0.00027397,7]
[384939944,1757629848071,-423.40641382,0.00027397,7]
[384939945,1757629848081,-400.0,0.00027397,7]
[384939946,1757629848091,-1237.08,0.00027397,7]
[384939947,1757629848102,-443.54,0.00027397,7]
[384939948,1757629848112,-1042.31,0.00027397,7]
[384939949,1757629848122,-400.0,0.00027397,7]
[384939950,1757629848132,-400.0,0.00027397,7]
[384939951,1757629848142,-445.48,0.00027397,7]
[384939952,1757629848152,-400.0,0.00027397,7]
[384939953,1757629848162,-400.0,0.00027397,7]
[384939954,1757629848172,-1424.55,0.00027397,7]
[384939955,1757629848181,-400.0,0.00027397,7]
[384939956,1757629848191,-400.0,0.00027397,7]
[384939957,1757629848200,-400.0,0.00027397,7]
[384939958,1757629848210,-976.72,0.00027397,7]
[384939959,1757629848220,-1088.28,0.00027397,7]
[384939960,1757629848230,-1120.01,0.00027397,7]
[384939961,1757629848240,-763.15,0.00027397,7]
[384939962,1757629848249,-400.0,0.00027397,7]
[384939963,1757629848259,-512.64,0.00027397,7]
[384939964,1757629848269,-400.0,0.00027397,7]
[384939965,1757629848280,-400.0,0.00027397,7]
[384939966,1757629848291,-400.0,0.00027397,7]
[384939967,1757629848301,-400.0,0.00027397,7]
[384939968,1757629848311,-400.0,0.00027397,7]
[384939969,1757629848322,-400.0,0.00027397,7]
[384939970,1757629848331,-400.0,0.00027397,7]
[384939971,1757629848341,-400.0,0.00027397,7]
[384939972,1757629848351,-1068.32,0.00027397,7]
[384939973,1757629848363,-400.0,0.00027397,7]
[384939974,1757629848373,-532.99,0.00027397,7]
[384939975,1757629848384,-1408.08,0.00027397,7]
[384939976,1757629848393,-2032.46,0.00027397,7]
[384939977,1757629848403,-783.06,0.00027397,7]
[384939978,1757629848413,-1599.9,0.00027397,7]
[384939979,1757629848422,-400.0,0.00027397,7]
[384939980,1757629848432,-400.0,0.00027397,7]
[384939981,1757629848442,-400.0,0.00027397,7]
[384939982,1757629848451,-400.0,0.00027397,7]
[384939983,1757629848461,-400.0,0.00027397,7]
[384939984,1757629848470,-400.0,0.00027397,7]
[384939985,1757629848480,-400.0,0.00027397,7]
[384939986,1757629848490,-559.21,0.00027397,7]
[384939987,1757629848499,-400.0,0.00027397,7]
[384939988,1757629848509,-400.0,0.00027397,7]
[384939989,1757629848518,-658.77,0.00027397,7]
[384939990,1757629848527,-400.0,0.00027397,7]
[384939991,1757629848537,-400.0,0.00027397,7]
[384939992,1757629848546,-794.92,0.00027397,7]
[384939993,1757629848556,-402.68097368,0.00027397,7]
[384939994,1757629848565,-400.0,0.00027397,7]
[384939995,1757629848575,-400.0,0.00027397,7]
[384939996,1757629848584,-1240.2,0.00027397,7]
[384939997,1757629848594,-400.0,0.00027397,7]
[384939998,1757629848605,-633.59,0.00027397,7]
[384939999,1757629848614,-400.0,0.00027397,7]
[384940000,1757629848624,-400.0,0.00027397,7]
[384940001,1757629848633,-506.14155895,0.00027397,7]
[384940002,1757629848643,-400.0,0.00027397,7]
[384940003,1757629848652,-400.0,0.00027397,7]
[384940004,1757629848663,-813.83,0.00027397,7]
[384940005,1757629848672,-400.0,0.00027397,7]
[384940006,1757629848681,-975.97,0.00027397,7]
[384940007,1757629848691,-593.34,0.00027397,7]
[384940008,1757629848701,-593.68,0.00027397,7]
[384940009,1757629848710,-1420.41,0.00027397,7]
[384940010,1757629848720,-401.8372646,0.00027397,7]
[384940011,1757629848729,-1044.39,0.00027397,7]
[384940012,1757629848738,-400.0,0.00027397,7]
[384940013,1757629848747,-400.0,0.00027397,7]
[384940014,1757629848759,-591.91,0.00027397,7]
[384940015,1757629848770,-400.0,0.00027397,7]
[384940016,1757629848779,-591.91,0.00027397,7]
[384940017,1757629848788,-400.0,0.00027397,7]
[384940018,1757629848798,-400.0,0.00027397,7]
[384940019,1757629848807,-400.0,0.00027397,7]
[384940020,1757629848817,-591.91,0.00027397,7]
[384940021,1757629848827,-400.0,0.00027397,7]
[384940022,1757629848836,-525.06,0.00027397,7]
[384940023,1757629848847,-400.0,0.00027397,7]
[384940024,1757629848857,-400.0,0.00027397,7]
[384940025,1757629848867,-637.44,0.00027397,7]
[384940026,1757629848877,-1080.32,0.00027397,7]
[384940027,1757629848887,-1211.94,0.00027397,7]
[384940028,1757629848896,-400.0,0.00027397,7]
[384940029,1757629848906,-400.0,0.00027397,7]
[384940030,1757629848917,-400.0,0.00027397,7]
[384940031,1757629848928,-400.0,0.00027397,7]
[384940032,1757629848943,-1216.04,0.00027397,7]
[384940033,1757629848954,-400.0,0.00027397,7]
[384940034,1757629848964,-400.0,0.00027397,7]
[384940035,1757629848974,-1116.76,0.00027397,7]
[384940036,1757629848983,-400.0,0.00027397,7]
[384940037,1757629848993,-456.94,0.00027397,7]
[384940038,1757629849002,-712.33,0.00027397,7]
[384940039,1757629849012,-1190.6,0.00027397,7]
[384940040,1757629849022,-400.0,0.00027397,7]
[384940041,1757629849031,-1339.3,0.00027397,7]
[384940042,1757629849042,-758.67,0.00027397,7]
[384940043,1757629849051,-400.0,0.00027397,7]
[384940044,1757629849061,-1713.86,0.00027397,7]
[384940045,1757629849070,-500.0,0.00027397,7]
[384940046,1757629849080,-1510.14,0.00027397,7]
[384940047,1757629849090,-400.0,0.00027397,7]
[384940048,1757629849100,-400.0,0.00027397,7]
[384940049,1757629849110,-958.78,0.00027397,7]
[384940050,1757629849119,-400.0,0.00027397,7]
[384940051,1757629849128,-400.0,0.00027397,7]
[384940052,1757629849138,-506.96,0.00027397,7]
[384940053,1757629849148,-400.0,0.00027397,7]
[384940054,1757629849157,-400.0,0.00027397,7]
[384940055,1757629849167,-400.0,0.00027397,7]
[384940056,1757629849177,-400.0,0.00027397,7]
[384940057,1757629849188,-400.0,0.00027397,7]
[384940058,1757629849197,-1161.36,0.00027397,7]
[384940059,1757629849207,-400.0,0.00027397,7]
[384940060,1757629849217,-400.0,0.00027397,7]
[384940061,1757629849226,-763.82,0.00027397,7]
[384940062,1757629849235,-427.27,0.00027397,7]
[384940063,1757629849245,-417.41,0.00027397,7]
[384940064,1757629849255,-400.0,0.00027397,7]
[384940065,1757629849265,-961.23,0.00027397,7]
[384940066,1757629849275,-400.0,0.00027397,7]
[384940067,1757629849288,-400.0,0.00027397,7]
[384940068,1757629849298,-1007.92,0.00027397,7]
[384940069,1757629849308,-400.0,0.00027397,7]
[384940070,1757629849317,-412.43,0.00027397,7]
[384940071,1757629849328,-400.0,0.00027397,7]
[384940072,1757629849338,-567.91,0.00027397,7]
[384940073,1757629849348,-400.0,0.00027397,7]
[384940074,1757629849360,-400.0,0.00027397,7]
[384940075,1757629849370,-1382.83,0.00027397,7]
[384940076,1757629849379,-400.0,0.00027397,7]
[384940077,1757629849390,-425.21857712,0.00027397,7]
[384940078,1757629849400,-1177.99,0.00027397,7]
[384940079,1757629849411,-956.02,0.00027397,7]
[384940080,1757629849421,-400.0,0.00027397,7]
[384940081,1757629849430,-400.0,0.00027397,7]
[384940082,1757629849440,-400.0,0.00027397,7]
[384940083,1757629849449,-1391.95,0.00027397,7]
[384940084,1757629849459,-400.0,0.00027397,7]
[384940085,1757629849468,-1038.23,0.00027397,7]
[384940086,1757629849477,-400.0,0.00027397,7]
[384940087,1757629849486,-725.56,0.00027397,7]
[384940088,1757629849495,-725.56,0.00027397,7]
[384940089,1757629849505,-400.0,0.00027397,7]
[384940090,1757629849514,-725.56,0.00027397,7]
[384940091,1757629849524,-1369.21,0.00027397,7]
[384940092,1757629849533,-403.15993573,0.00027397,7]
[384940093,1757629849543,-895.22,0.00027397,7]
[384940094,1757629849552,-400.0,0.00027397,7]
[384940095,1757629849563,-400.0,0.00027397,7]
[384940096,1757629849575,-174.61942279,0.00027397,7]
[384940097,1757629849585,-759.19,0.00027397,7]
[384940098,1757629849594,-1379.45,0.00027397,7]
[384940099,1757629849605,-400.0,0.00027397,7]
[384940100,1757629849615,-678.27,0.00027397,7]
[384940101,1757629849624,-400.0,0.00027397,7]
[384940102,1757629849633,-1372.61,0.00027397,7]
[384940103,1757629849643,-158.085363,0.00027397,7]
[384940104,1757629849652,-400.0,0.00027397,7]
[384940105,1757629849662,-1500.51,0.00027397,7]
[384940106,1757629849672,-817.86,0.00027397,7]
[384940107,1757629849682,-1150.57,0.00027397,7]
[384940108,1757629849692,-400.0,0.00027397,7]
[384940109,1757629849702,-2153.09,0.00027397,7]
[384940110,1757629849711,-400.0,0.00027397,7]
[384940111,1757629849720,-255.90573068,0.00027397,7]
[384940112,1757629849730,-400.0,0.00027397,7]
[384940113,1757629849739,-1058.95,0.00027397,7]
[384940114,1757629849839,-400.0,0.00027397,7]
[384940115,1757629849849,-188.726116,0.00027397,7]
[384940116,1757629849859,-647.2,0.00027397,7]
[384940117,1757629849868,-400.0,0.00027397,7]
[384940118,1757629849877,-400.0,0.00027397,2]
[384940119,1757629849887,-1181.46,0.00027397,7]
[384940120,1757629849896,-1017.32,0.00027397,7]
[384940121,1757629849906,-400.0,0.00027397,7]
[384940122,1757629849915,-158.523326,0.00027397,7]
[384940123,1757629849924,-558.42,0.00027397,7]
[384940124,1757629849934,-400.0,0.00027397,7]
[384940125,1757629849943,-400.0,0.00027397,7]
[384940126,1757629849954,-400.0,0.00027397,7]
[384940127,1757629849963,-1311.46,0.00027397,7]
[384940128,1757629849972,-400.0,0.00027397,7]
[384940129,1757629849981,-400.0,0.00027397,7]
[384940130,1757629849991,-400.0,0.00027397,7]
[384940131,1757629849999,-400.0,0.00027397,7]
[384940132,1757629850008,-400.0,0.00027397,7]
[384940133,1757629850018,-400.0,0.00027397,7]
[384940134,1757629850027,-400.0,0.00027397,7]
[384940135,1757629850036,-400.0,0.00027397,7]
[384940136,1757629850045,-1460.53,0.00027397,7]
[384940137,1757629850054,-400.0,0.00027397,7]
[384940138,1757629850064,-972.49,0.00027397,7]
[384940139,1757629850073,-400.0,0.00027397,7]
[384940140,1757629850082,-400.0,0.00027397,7]
[384940141,1757629850091,-400.0,0.00027397,7]
[384940142,1757629850101,-1012.01,0.00027397,7]
[384940143,1757629850111,-1579.32,0.00027397,7]
[384940144,1757629850121,-400.0,0.00027397,7]
[384940145,1757629850131,-400.0,0.00027397,7]
[384940146,1757629850140,-495.14,0.00027397,7]
[384940147,1757629850149,-879.55,0.00027397,7]
[384940148,1757629850159,-739.96,0.00027397,7]
[384940149,1757629850168,-400.0,0.00027397,7]
[384940150,1757629850177,-2386.39,0.00027397,7]
[384940151,1757629850186,-526.83,0.00027397,7]
[384940152,1757629850195,-604.51,0.00027397,7]
[384940153,1757629850204,-400.0,0.00027397,7]
[384940154,1757629850213,-1113.84,0.00027397,7]
[384940155,1757629850222,-1602.15,0.00027397,7]
[384940156,1757629850231,-909.55,0.00027397,7]
[384940157,1757629850241,-400.0,0.00027397,7]
[384940158,1757629850251,-400.0,0.00027397,7]
[384940159,1757629850260,-1244.01,0.00027397,7]
[384940160,1757629850269,-400.0,0.00027397,7]
[384940161,1757629850278,-338.42812963,0.00027397,7]
[384940162,1757629850291,-1188.64,0.00027397,7]
[384940163,1757629850300,-400.0,0.00027397,7]
[384940164,1757629850310,-1097.38,0.00027397,7]
[384940165,1757629850319,-2113.75,0.00027397,7]
[384940166,1757629850328,-1211.35,0.00027397,7]
[384940167,1757629850338,-1271.43,0.00027397,7]
[384940168,1757629850348,-400.0,0.00027397,7]
[384940169,1757629850357,-1206.01,0.00027397,7]
[384940170,1757629850368,-400.0,0.00027397,7]
[384940171,1757629850377,-400.0,0.00027397,7]
[384940172,1757629850386,-957.5,0.00027397,7]
[384940173,1757629850395,-461.77,0.00027397,7]
[384940174,1757629850405,-400.0,0.00027397,7]
[384940175,1757629850414,-458.66,0.00027397,7]
[384940176,1757629850424,-400.0,0.00027397,7]
[384940177,1757629850434,-1089.06,0.00027397,7]
[384940178,1757629850443,-400.0,0.00027397,7]
[384940179,1757629850453,-400.0,0.00027397,7]
[384940180,1757629850463,-400.0,0.00027397,7]
[384940181,1757629850474,-2056.95,0.00027397,7]
[384940182,1757629850483,-300.0,0.00027397,7]
[384940183,1757629850491,-400.0,0.00027397,7]
[384940184,1757629850500,-400.0,0.00027397,7]
[384940185,1757629850510,-895.96,0.00027397,7]
[384940186,1757629850519,-400.0,0.00027397,7]
[384940187,1757629850528,-400.0,0.00027397,7]
[384940188,1757629850537,-400.0,0.00027397,7]
[384940189,1757629850546,-500.0,0.00027397,2]
[384940190,1757629850555,-430.71,0.00027397,7]
[384940191,1757629850564,-957.34,0.00027397,7]
[384940192,1757629850574,-964.83,0.00027397,7]
[384940193,1757629850583,-2419.66,0.00027397,7]
[384940194,1757629850592,-400.0,0.00027397,7]
[384940195,1757629850602,-403.41,0.00027397,7]
[384940196,1757629850611,-3946.89,0.00027397,7]
[384940197,1757629850620,-1450.38,0.00027397,7]
[384940198,1757629850629,-400.0,0.00027397,7]
[384940199,1757629850639,-400.0,0.00027397,7]
[384940200,1757629850647,-400.0,0.00027397,7]
[384940201,1757629850658,-1593.12,0.00027397,7]
[384940202,1757629850669,-380.67150473,0.00027397,7]
[384940203,1757629850678,-400.0,0.00027397,7]
[384940204,1757629850687,-400.0,0.00027397,7]
[384940205,1757629850696,-400.0,0.00027397,7]
[384940206,1757629850705,-400.0,0.00027397,7]
[384940207,1757629850714,-537.59,0.00027397,7]
[384940208,1757629850723,-400.0,0.00027397,7]
[384940209,1757629850732,-400.0,0.00027397,7]
[384940210,1757629850741,-1201.29,0.00027397,7]
[384940211,1757629850750,-400.0,0.00027397,7]
[384940212,1757629850760,-980.67,0.00027397,7]
[384940213,1757629850769,-400.0,0.00027397,7]
[384940214,1757629850778,-962.67,0.00027397,7]
[384940215,1757629850787,-2453.77,0.00027397,7]
[384940216,1757629850797,-400.0,0.00027397,7]
[384940217,1757629850806,-1017.66,0.00027397,7]
[384940218,1757629850815,-536.37107769,0.00027397,7]
[384940219,1757629850824,-870.24,0.00027397,7]
[384940220,1757629850834,-504.47,0.00027397,7]
[384940221,1757629850843,-1437.33,0.00027397,7]
[384940222,1757629850853,-400.0,0.00027397,7]
[384940223,1757629850862,-400.0,0.00027397,7]
[384940224,1757629850873,-400.0,0.00027397,7]
[384940225,1757629850882,-400.0,0.00027397,7]
[384940226,1757629850892,-455.32,0.00027397,7]
[384940227,1757629850900,-400.0,0.00027397,7]
[384940228,1757629850910,-400.0,0.00027397,7]
[384940229,1757629850919,-3042.36,0.00027397,7]
[384940230,1757629850929,-400.0,0.00027397,7]
[384940231,1757629850938,-1057.87,0.00027397,7]
[384940232,1757629850947,-1224.47,0.00027397,7]
[384940233,1757629850956,-3490.1,0.00027397,7]
[384940234,1757629850965,-405.38442365,0.00027397,7]
[384940235,1757629850974,-400.0,0.00027397,7]
[384940236,1757629850983,-413.91,0.00027397,7]